{"text_format":"3","workbook":"xlsx","n_sheets":1,"sheets":["PRICING SCHEDULE"],"not_rendered":{"images":1,"defined_names":2},"read":"whole","date_system":"1900"}

{"sheet":"PRICING SCHEDULE","index":0,"n_rows":79,"n_cols":14,"rows_kept":79,"merged":[[12,3,12,5],[12,7,12,8],[12,9,12,11],[75,1,78,1],[75,3,75,4],[77,3,77,4],[78,3,78,4]]}
[null,"SUPPLY CHAIN MANAGEMENT"]
[null,"Pricing schedule"]
["RFx No","RFB 2843/2023"]
["RFx Title","SUPPLY AND DELIVER UNIFORMS, CORPORATE WEAR AND PPE TO SITA FACILITIES MANAGEMENT AND PHYSICAL SECURITY DEPARTMENT FOR A PERIOD OF THREE (3) YEARS"]
["Bidder Name "]
[]
["1. INSTRUCTION FOR COMPLETING THE PRICING SCHEDULE"]
["(a)  Bidder must complete/enter YELLOW cells only"]
["(b)  Unit and Line prices must be VAT EXCLUSIVE and in South African Rand (ZAR) currency."]
["(c) The price must include all cost to deliver the goods or render the service, including all applicable taxes, duty fees, logistics/delivery, maintenance, pest control, call out fees, storage, labour, overtime and subsistance and travel"]
["(d) This is as and when required service, and the successful service provider will be notified when service is required."]
[]
[{"$nulls":3},"YEAR 1",{"$nulls":3},"YEAR 2",null,"YEAR 3",null,null,"TOTAL"]
["Item No","Description","Unit of measure","Qty ","Unit Price \n(Excl VAT)","Line Price Y1","Qty ","Unit Price \n(Excl VAT)","Line Price Y2","Qty","Unit Price \n(Excl VAT)","Line Price Y3","Line Price Term \n(Excl VAT)","Price clarification comment"]
[null,"Ladies"]
[1,"Panelled Hip length, Short sleeve top, Mandarin collar, Button detail on 1 shoulder  - Sita Pantone colours - marble polyester - SITA Logo embroidery","each",6,null,{"$f":"D16*E16","v":0},6,null,{"$f":"G16*H16","v":0},6,null,{"$f":"J16*K16","v":0},{"$f":"F16+I16+L16","v":0}]
[2,"Panelled Hip length, Long sleeve top, Mandarin collar, Button detail on 1 shoulder  -Sita Pantone colours - marble polyester - SITA Logo embroidery","each",9,null,{"$f":"D17*E17","v":0},9,null,{"$f":"G17*H17","v":0},9,null,{"$f":"J17*K17","v":0},{"$f":"F17+I17+L17","v":0}]
[3,"Ladies Trousers/slax - Partly elastic waist, 2 side pockets and flat front, pull up -  SITA pantone colours - marble polyester","each",25,null,0,25,null,0,25,null,0,0]
[4,"Ladies lined skirts - pencil skirt, waistband or elastic, back slit - Sita Pantone colours  -  marble polyester","each",26,null,0,26,null,0,26,null,0,0]
[5,"Ladies lined skirts - long soft flair skirt, waistband or elastic, no slit -  marble polyester","each",11,null,0,11,null,0,11,null,0,0]
[6,"Ladies 3/4 sleeve panelled blouse with soft cuffs and with fashionable bow neckline, front buttons -  Sita Pantone colours- Pearl Polyester ","each",32,null,0,32,null,0,32,null,0,0]
[7,"Ladies long sleeve blouse with cuffs, with tie detail and back pleat no buttons on front panels - SITA pantone colours - pearl polyester","each",32,null,0,32,null,0,32,null,0,0]
[8,"Ladies elbow length, split tie sleeve, boat shape neck blouse, no buttons -  SITA pantone colours - pearl polyester","each",15,null,0,15,null,0,15,null,0,0]
[9,"Classic Cardigan Long Raglan sleeves, front buttons, round neck/V-neck - Sita pantone colours -SITA Logo embroidery","each",24,null,0,24,null,0,24,null,0,0]
[10,"Classic Cardigan Long Raglan sleeves, V-neck, no buttons - Sita pantone colours -SITA Logo embroidery","each",4,null,0,4,null,0,4,null,0,0]
[11,"Ladies panelled and lined A- line dress - short sleeve, front slit and small matching buttons on mid seam of dress top & on sleeve cuffs, Matching belt, V-neck  - SITA Pantone colours  - marble polyester -SITA Logo embroidery","each",21,null,0,21,null,0,21,null,0,0]
[12,"Ladies panelled and A line dress - 3/4 sleeve, back slit - SITA Pantone colours  -marble polyester-SITA Logo embroidery","each",14,null,0,14,null,0,14,null,0,0]
[13,"Ladies panelled and lined A- line dress - long sleeve, front slit and small matching buttons on mid seam of dress top & on sleeve cuffs, Matching belt, V-neck  - SITA Pantone colours  - marble polyester -SITA Logo embroidery","each",14,null,0,14,null,0,14,null,0,0]
[14,"Shirt dress with roll up tab sleeves - unlined - cotton rich material, stand up collar and front buttons with side pockets in seam, shoulder panel, cuffs and material belt with hooks-SITA Logo embroidery","each",3,null,0,3,null,0,3,null,0,0]
[15,"Ladies Lined Formal Jackets - Long sleeve - short shaped jacket with Zip Pockets, front button(s), Chinese/V-shape design collar- Sita pantone colours - marble polyester-SITA Logo embroidery","each",13,null,0,13,null,0,13,null,0,0]
[16,"Ladies Lined Formal Jackets - Long or 3/4 sleeve - Hip length/medium length/ shaped jacket with Jet Pockets, front button(s), Sita pantone colours -  marble polyester-SITA Logo embroidery","each",13,null,0,13,null,0,13,null,0,0]
[17,"Ladies Lined Formal Jackets - short sleeve - Hip length/medium length/ panel shaped jacket, no pockets, boat shape neck, no buttons, Sita pantone colours -  marble polyester-SITA Logo embroidery","each",13,null,0,13,null,0,13,null,0,0]
[18,"Ladies scarfs  - one size fits all - approx. 142cm x 21cm  - SITA pantone colours - pearl polyester","each",32,null,0,32,null,0,32,null,0,0]
[19," Classic ladies lined coat with front buttons and color - elegant above the knee length with side pockets, material belt (optional) Material : Luxurious melton or similar fabric  - Sita pantone colours -SITA Logo embroidery","each",16,null,0,16,null,0,16,null,0,0]
[20,"Long sleeve Jacket, waterfall style , unlined, Side pocket, no front buttons - Pantone colours  - marble polyester -SITA Logo embroidery","each",4,null,0,4,null,0,4,null,0,0]
[21,"Panelled Long sleeve top with Zip in front - back longer than front panels - unlined -   marble polyester-SITA Logo embroidery","each",4,null,0,4,null,0,4,null,0,0]
[22,"Panelled short sleeve top with Zip in front - back longer than front panels - unlined -  -marble polyester-SITA Logo embroidery","each",4,null,0,4,null,0,4,null,0,0]
[23,"2 Piece Conti suits - the overalls must be Flame Retardant (Sasol Zero Flame) with reflective strips on both the trousers and the tops, concealed with YKK zip front closure, side vents for extra comfort and flexibility, 2 side pockets, 1 breast pocket and flap press stud closure, stress areas must be bar tacked, pockets must be  double needled and all stress seams triple stitched -SITA Logo & employee name embroidery on the top","each",1,null,0,1,null,0,1,null,0,0]
[24,"2 Line, Magnet Clip Name Badge - Gold military style with engraved SITA Logo, employee name and designation  ","each",28,null,0,28,null,0,28,null,0,0]
[null,"Men"]
[25,"Pull overs -  1x1 rib V-neck, armholes and bottom hem - corporate sleeveless - Sita pantone colours -SITA Logo embroidery","each",38,null,{"$f":"D41*E41","v":0},38,null,{"$f":"G41*H41","v":0},38,null,{"$f":"J41*K41","v":0},{"$f":"F41+I41+L41","v":0}]
[26,"Jersey long sleeves, V-neck, no buttons - Sita pantone colours -SITA Logo embroidery","each",31,null,{"$f":"D42*E42","v":0},31,null,{"$f":"G42*H42","v":0},31,null,{"$f":"J42*K42","v":0},{"$f":"F42+I42+L42","v":0}]
[27,"Mens informal Jacket - 360 g/m2, 100% polyester single jersey knit bonded with 100% polyester micro fleece, two hand pockets, interior mobile phone pocket, - Sita pantone colours -SITA Logo embroidery","each",26,null,0,26,null,0,26,null,0,0]
[28,"Men's trousers - Cotton twill, light stretch material, Sits just below the waist, Narrow leg, Tapered hem , Side pockets, back welt pockets, Belt loops - Sita pantone colours - Chinos\n","each",20,null,0,20,null,0,20,null,0,0]
[29,"Long sleeve regular fit Formal Men's shirt - cotton rich material -  SITA Pantone colours-SITA Logo embroidery","each",44,null,0,44,null,0,44,null,0,0]
[30,"Short sleeve regular fit Formal Men's shirt - cotton rich material - SITA Pantone colours-SITA Logo embroidery","each",44,null,0,44,null,0,44,null,0,0]
[31,"Mens Jeans - Double needle posting on the inner leg, back rise and yoke, bar tacks on all stress points, concealed zip, and element of stretch for ease of movement, Antique brass rivets, Regular straight leg fit. ","each",48,null,0,48,null,0,48,null,0,0]
[32,"Golf T- shirts with collar  - 100% Cotton - durable , three button placket, tone-on tone buttons, side slits  - Sita pantone colours -SITA Logo embroidery","each",120,null,0,120,null,0,120,null,0,0]
[33,"Formal Suit- Lined Blazer and trousers - Front buttons, 2 front pockets - Marble Polyester - Trousers with belt loops and side pockets- SITA Pantone colours-SITA Logo embroidery",{"$nulls":3},0,null,null,0,null,null,0,0]
["33a","Blazer","each",47,null,0,47,null,0,47,null,0,0]
["33b","Trouser","each",47,null,0,47,null,0,47,null,0,0]
[34,"Formal Men's Neck tie- SITA Pantone colours","each",32,null,0,32,null,0,32,null,0,0]
[35,"Dustcoats - knee length - 3 pockets - button front - Sita pantone colours -SITA Logo embroidery","each",6,null,0,6,null,0,6,null,0,0]
[36,"2 Piece Conti suits - the overalls must be Flame Retardant (Sasol Zero Flame) with reflective strips on both the trousers and the tops, concealed with YKK zip front closure, side vents for extra comfort and flexibility, 2 side pockets, 1 breast pocket and flap press stud closure, stress areas must be bar tacked, pockets must be  double needled and all stress seams triple stitched -SITA Logo & employee name embroidery on the top","each",94,null,0,94,null,0,94,null,0,0]
[37,"Water Defender Reflective High Visibility Fleece Jacket (waterproof), front zip, collar and hood - Sita pantone colours -SITA Logo embroidery.","each",39,null,0,39,null,0,39,null,0,0]
[38,"Sun(Cricket) Hat with wide rim all round, metal eyelets,cord with side toggle - heavy brushed cotton - - Sita pantone colours -SITA Logo embroidery","each",52,null,0,52,null,0,52,null,0,0]
[39,"Orange & Navy Blue Industrial Reflective Vest  ","each",2,null,0,2,null,0,2,null,0,0]
[40,"Cargo Pants Navy (Size)Men's trousers -","each",10,null,0,10,null,0,10,null,0,0]
[41,"Navy Blue Hooded Winter Coat Warm Puffer Jacket Thicken Cotton Mountain Waterproof Ski Jacket Windproof Warm Snow Coat  (Size)","each",2,null,0,2,null,0,2,null,0,0]
[42,"T- shirts   - 100% Cotton - durable, short sleeve ","each",4,null,0,4,null,0,4,null,0,0]
[43,"T- shirts   - 100% Cotton - durable, long sleeve, ","each",4,null,0,4,null,0,4,null,0,0]
[null,"PPE"]
[44,"Rubber Coated Crayfish Gloves","each",20,null,{"$f":"D63*E63","v":0},20,null,{"$f":"G63*H63","v":0},20,null,{"$f":"J63*K63","v":0},{"$f":"F63+I63+L63","v":0}]
[45,"Disposable Face  Mask","each",50,null,{"$f":"D64*E64","v":0},50,null,{"$f":"G64*H64","v":0},50,null,{"$f":"J64*K64","v":0},{"$f":"F64+I64+L64","v":0}]
[46,"Gloves -  Rubber/Chemical resistance gloves  -Red nylon PU palm gloves 100pr","each",20,null,0,20,null,0,20,null,0,0]
[47,"Clear Protection goggles","each",22,null,0,22,null,0,22,null,0,0]
[48,"Disposable Earplugs (200 per box)","each",2,null,0,2,null,0,2,null,0,{"$f":"F67+I67+L67","v":0}]
[49,"Half face Gas Masks ","each",20,null,0,20,null,0,20,null,0,{"$f":"F68+I68+L68","v":0}]
[50,"Half face Gas Mask filters","each",20,null,0,20,null,0,20,null,0,{"$f":"F69+I69+L69","v":0}]
[51,"Hard Hats","each",20,null,0,20,null,0,20,null,0,{"$f":"F70+I70+L70","v":0}]
[null,"TOTAL BID PRICE  (EXCL VAT)",{"$nulls":3},{"$f":"SUM(F16:F70)","v":0},null,null,{"$f":"SUM(I16:I70)","v":0},null,null,{"$f":"SUM(L16:L70)","v":0},{"$f":"SUM(M16:M70)","v":0}]
[null,"VAT (@15%)",{"$nulls":3},{"$f":"F71*0.15","v":0},null,null,{"$f":"I71*0.15","v":0},null,null,{"$f":"L71*0.15","v":0},{"$f":"M71*0.15","v":0}]
[null,"TOTAL  BID PRICE (INCL VAT)",{"$nulls":3},{"$f":"F71+F72","v":0},null,null,{"$f":"I71+I72","v":0},null,null,{"$f":"L71+L72","v":0},{"$f":"M71+M72","v":0}]
[null,"Note: The quantities indicated may vary in Year 2 and 3 depending on Demand."]
[]
[null,"I, the bidder, confirm that the price(s) and rate(s) quoted cover all the goods and/or works specified in the bidding documents; that the price(s) or rate(s) cover all my obligations and I accept that any mistakes regarding price(s), rate(s) or calculations will be at my own risk.\n[Note: First convert to PDF, then add signature]"]
[null,null,"Name","Capacity"]
[]
[null,null,"Signature (above)","Date"]